bitfinex/quotes_ETHUSD_20250129
["timestamp","ask_amount","ask_price","bid_price","bid_amount"]
[1738122521603,3.20063,3124.4,3123.9,3.98152]
[1738122521773,3.20043,3124.6,3123.9,3.98152]
[1738122522612,3.20061,3124.4,3123.9,0.7804]
[1738122525774,3.20071,3124.3,3123.9,0.7804]
[1738122526510,3.20061,3124.4,3123.9,0.7804]
[1738122526696,3.20014,3124.9,3124.2,3.20081]
[1738122527005,3.20023,3124.8,3124.3,0.7893]
[1738122527207,3.20014,3124.9,3124.3,0.7893]
[1738122527504,3.19991,3125.1,3124.5,3.98948]
[1738122527692,3.19931,3125.7,3125.0,0.789]
[1738122527896,3.19931,3125.7,3125.0,3.98892]
[1738122528309,3.1994,3125.6,3125.0,0.789]
[1738122529310,3.19931,3125.7,3125.0,3.98895]
[1738122529508,3.19931,3125.7,3125.0,0.789]
[1738122529712,3.1995,3125.5,3125.0,0.789]
[1738122530008,3.19931,3125.7,3125.0,1.51112263]
[1738122530188,3.19931,3125.7,3125.0,4.71108263]
[1738122531615,0.7886,3126.3,3125.5,3.19947]
[1738122531777,5.37,3126.6,3125.8,0.7933]
[1738122531778,9.35698,3126.6,3125.8,0.7933]
[1738122531979,3.19849,3126.5,3125.9,3.19906]
[1738122532197,1.255547,3126.5,3125.8,0.7933]
[1738122532482,3.19876,3126.3,3125.8,0.7933]
[1738122533815,3.19839,3126.6,3126.0,3.19897]
[1738122534184,3.19839,3126.6,3126.1,0.7933]
[1738122535491,3.19859,3126.4,3125.8,0.8274]
[1738122535681,3.19878,3126.2,3125.8,0.8274]
[1738122535881,3.19888,3126.1,3125.6,0.8274]
[1738122538016,9.21864128,3127.1,3125.6,1.26527109]
[1738122538192,0.65069128,3127.1,3126.3,3.19862]
[1738122538396,3.1978,3127.2,3126.5,3.19845]
[1738122538711,3.0,3127.1,3126.6,3.19835]
[1738122539120,3.0,3127.1,3126.5,3.19845]
[1738122540712,6.19785,3127.1,3126.5,3.19845]
[1738122540919,6.19785,3127.1,3126.4,0.8274]
[1738122541213,6.19785,3127.1,3126.4,4.428539]
[1738122541516,3.19729,3127.7,3126.4,4.428539]
[1738122541517,0.8244,3128.1,3127.1,0.8274]
[1738122541717,3.1971,3127.9,3127.3,3.19757]
[1738122541894,3.19706,3127.9,3127.3,0.03197252]
[1738122542079,3.19706,3127.9,3127.1,0.8274]
[1738122542080,3.19732,3127.7,3127.1,0.8274]
[1738122542278,3.19732,3127.7,3127.1,1.229932]
[1738122543755,3.19732,3127.7,3127.1,4.427762]
[1738122543911,3.19706,3127.9,3127.2,3.19774]
[1738122544102,3.19714,3127.8,3127.2,3.19774]
[1738122544732,3.19706,3127.9,3127.2,3.19774]
[1738122544907,3.19706,3127.9,3127.3,0.4427672]
[1738122545429,3.19722,3127.8,3127.3,0.4427672]
[1738122546132,3.0,3128.0,3127.3,0.4427672]
[1738122546304,3.0,3128.0,3127.4,4.02492]
[1738122546498,6.19694,3128.0,3127.4,4.79466004]
[1738122546846,0.005,3128.4,3128.1,3.19679]
[1738122547004,0.005,3128.4,3128.2,0.8274]
[1738122547203,0.005,3128.4,3128.3,3.19662]
[1738122547507,0.005,3128.4,3128.3,3.92189041]
[1738122547904,0.005,3128.4,3128.2,0.8274]
[1738122548645,0.005,3128.4,3128.3,3.19662]
[1738122548953,0.005,3128.4,3128.3,3.22858]
[1738122549100,0.005,3128.4,3128.3,3.19662]
[1738122549704,0.005,3128.4,3128.3,3.97532]
[1738122549938,0.005,3128.4,3128.3,11.15510413]
[1738122550237,0.005,3128.4,3128.3,11.12314266]
[1738122550462,0.1632688,3130.0,3128.7,3.0]
[1738122550609,0.1632688,3130.0,3129.5,0.7787]
[1738122551111,3.19499,3129.9,3129.5,0.7787]
[1738122552827,0.8324,3129.8,3129.2,0.8062]
[1738122553131,0.8324,3129.8,3129.0,0.48786327]
[1738122553132,3.1958,3129.1,3129.0,0.48786327]
[1738122553507,3.19569,3129.3,3129.0,0.48786327]
[1738122553712,3.1958,3129.1,3129.0,0.48786327]
[1738122553982,3.19569,3129.3,3129.0,0.48786327]
[1738122554122,3.19505,3129.9,3129.1,0.7955]
[1738122554328,0.1632688,3130.0,3129.4,3.19548]
[1738122554523,3.3581588,3130.0,3129.3,3.1956]
[1738122554725,3.19503,3129.9,3129.3,3.1956]
[1738122555735,3.19503,3129.9,3129.4,0.48786327]
[1738122557219,3.19521,3129.7,3129.2,0.88700127]
[1738122557454,3.19546,3129.5,3129.2,0.48786327]
[1738122557626,3.1955,3129.4,3129.2,0.48786327]
[1738122558043,3.1956,3129.3,3129.2,0.48786327]
[1738122559454,3.19581,3129.1,3128.6,0.48786327]
[1738122559664,3.19591,3129.0,3128.6,0.48786327]
[1738122560021,3.19581,3129.1,3128.6,0.48786327]
[1738122560335,3.1957,3129.2,3128.6,4.1325746]
[1738122560533,3.19592,3129.0,3128.6,0.48786327]
[1738122561343,3.19611,3128.8,3128.6,0.48786327]
[1738122561854,3.19572,3129.2,3128.6,0.48786327]
[1738122562059,3.19572,3129.2,3128.6,3.68408327]
[1738122562217,3.19532,3129.6,3128.6,0.48786327]
[1738122562426,3.19532,3129.6,3128.9,3.19592]
[1738122562651,3.19532,3129.6,3128.9,3.59602793]
[1738122563025,3.19532,3129.6,3128.9,0.43206418]
[1738122563226,3.94962,3129.8,3129.0,3.19582]
[1738122563523,3.94962,3129.8,3129.2,0.7732]
[1738122564049,6.39075,3129.6,3128.9,1.21580793]
[1738122564779,3.19536,3129.6,3128.9,4.01169]
[1738122564936,3.19536,3129.6,3129.0,3.19584]
[1738122565955,3.19541,3129.5,3129.0,3.19584]
[1738122566154,3.19562,3129.3,3128.9,0.8157]
[1738122566358,3.1955,3129.4,3128.9,0.8157]
[1738122566359,3.1957,3129.2,3128.9,0.8157]
[1738122566549,3.1955,3129.4,3128.9,0.8157]
[1738122566861,3.19562,3129.3,3128.9,0.8157]
[1738122567074,3.19533,3129.6,3128.8,3.1961]
[1738122567277,0.55,3129.7,3128.8,3.1961]
[1738122567481,3.19556,3129.4,3128.8,3.1961]
[1738122567827,3.19529,3129.6,3129.0,3.19589]
[1738122568027,3.19529,3129.6,3128.9,1.11811]
[1738122568238,3.19543,3129.5,3128.9,1.11811]
[1738122568538,3.19557,3129.4,3128.9,0.7985]
[1738122568738,3.19532,3129.6,3128.9,3.99446]
[1738122569139,3.1954,3129.5,3128.9,3.99446]
[1738122569446,3.3581788,3130.0,3129.1,0.8325]
[1738122569648,0.1632688,3130.0,3129.9,0.8325]
[1738122569876,0.1632688,3130.0,3129.9,4.02749]
[1738122570088,0.03193,3131.1,3131.0,3.19386]
[1738122570376,0.03193,3131.1,3131.0,10.50136]
[1738122570524,1e-05,3131.1,3131.0,10.50136]
[1738122570725,1e-05,3131.1,3131.0,10.55976215]
[1738122570926,1e-05,3131.1,3131.0,12.44102868]
[1738122571239,1e-05,3131.1,3131.0,9.44102868]
[1738122571555,1e-05,3131.1,3131.0,7.73650546]
[1738122572160,1e-05,3131.1,3131.0,3.43014546]
[1738122572325,3.19847,3131.4,3131.0,0.23514546]
[1738122572764,3.19376,3131.1,3130.9,2.532]
[1738122574558,3.19847,3131.4,3130.9,2.532]
[1738122574942,3.19366,3131.2,3130.9,2.532]
[1738122575143,3.19847,3131.4,3130.9,2.532]
[1738122575346,3.19376,3131.1,3130.9,2.532]
[1738122575949,3.19386,3131.0,3130.9,2.532]
[1738122576860,3.19358,3131.3,3130.9,2.532]
[1738122577064,3.19366,3131.2,3130.9,2.532]
[1738122577229,3.19386,3131.0,3130.9,2.532]
[1738122578472,3.832612,3131.0,3130.9,2.532]
[1738122580508,3.19386,3131.0,3130.9,2.532]
[1738122582425,0.55,3130.9,3129.6,0.7954]
[1738122582562,3.19437,3130.6,3129.9,3.1949]
[1738122582758,0.55,3130.9,3129.6,0.7954]
[1738122583013,3.19418,3130.7,3129.8,3.19508]
[1738122583172,3.19418,3130.7,3129.8,3.594128]
[1738122583371,0.55,3130.9,3129.8,0.399048]
[1738122583372,3.19448,3130.4,3129.8,0.399048]
[1738122583678,3.19448,3130.4,3129.6,0.82734879]
[1738122584063,3.19448,3130.4,3129.6,0.7954]
[1738122584419,3.19448,3130.4,3129.7,3.19511]
[1738122584624,3.19458,3130.3,3129.7,3.19511]
[1738122584919,3.19444,3130.5,3129.7,6.39211]
[1738122585227,3.19428,3130.6,3130.0,3.19487]
[1738122585871,3.19439,3130.5,3129.8,3.9169658]
[1738122586397,3.19447,3130.5,3129.9,3.19498]
[1738122587706,3.19467,3130.3,3129.7,3.19516]
[1738122587927,3.74402,3130.9,3129.6,0.7954]
[1738122587928,3.19495,3130.0,3129.6,0.7954]
[1738122588894,3.19526,3129.7,3129.3,0.8284]
[1738122589088,3.19499,3129.9,3129.3,0.8284]
[1738122589321,3.19511,3129.8,3129.3,0.8284]
[1738122589788,3.19526,3129.7,3129.3,0.8284]
[1738122592834,3.19547,3129.5,3129.0,0.8033]
[1738122593040,3.19547,3129.5,3129.0,1.456328]
[1738122594533,3.19547,3129.5,3128.9,3.198]
[1738122594722,3.19547,3129.5,3128.8,2.531]
[1738122594925,0.7712,3129.6,3128.8,2.531]
[1738122595240,3.19552,3129.4,3128.8,5.72706]
[1738122595445,3.19563,3129.3,3128.8,2.531]
[1738122595653,3.19524,3129.7,3128.9,3.843886]
[1738122595854,3.19524,3129.7,3129.1,3.19578]
[1738122596845,3.8277,3130.0,3129.5,3.19537]
[1738122597010,3.195,3129.9,3129.2,4.0206]
[1738122597347,3.1944,3130.5,3129.8,0.7947]
[1738122597553,3.19448,3130.4,3129.8,0.7947]
[1738122599144,3.1944,3130.5,3129.8,0.7947]
[1738122599341,3.19459,3130.3,3129.8,0.7947]
[1738122600651,3.1948,3130.1,3129.4,0.7933]
[1738122600853,3.19518,3129.8,3129.4,0.7933]
[1738122601038,3.19518,3129.8,3129.1,3.19578]
[1738122601039,3.19526,3129.7,3129.1,3.98908]
[1738122601236,3.19518,3129.8,3129.2,3.197]
[1738122601237,3.19536,3129.6,3129.2,3.197]
[1738122601442,3.19536,3129.6,3129.1,0.7933]
[1738122601745,3.19553,3129.4,3129.1,0.7933]
[1738122602215,3.19562,3129.3,3129.1,0.7933]
[1738122602415,3.19562,3129.3,3128.8,5.7271]
[1738122602416,3.1959,3129.0,3128.8,2.531]
[1738122603145,3.19574,3129.2,3128.8,2.531]
[1738122603331,3.19582,3129.1,3128.8,2.7841]
[1738122603669,3.19582,3129.1,3128.8,2.531]
[1738122603950,3.19581,3129.1,3128.8,2.531]
[1738122605445,2.042401,3129.4,3128.8,2.531]
[1738122605446,3.19595,3129.0,3128.8,2.531]
[1738122605645,3.19601,3128.9,3128.8,2.531]
[1738122607128,3.19595,3129.0,3128.8,2.531]
[1738122607824,6.39195,3129.0,3128.8,2.531]
[1738122609338,3.19601,3128.9,3128.8,2.531]
[1738122610926,3.19661,3128.4,3128.1,0.7691]
[1738122611233,3.19661,3128.4,3127.8,3.9681]
[1738122611435,3.19661,3128.4,3127.8,4.0000681]
[1738122613775,3.19634,3128.6,3128.0,3.19684]
[1738122613926,3.19625,3128.7,3128.1,1.101884]
[1738122614326,3.19625,3128.7,3128.1,3.9812]
[1738122614553,3.19625,3128.7,3128.1,7.17799]
[1738122614765,3.19632,3128.6,3128.1,7.17799]
[1738122615062,3.19625,3128.7,3128.1,7.17799]
[1738122615464,3.19633,3128.6,3128.1,7.17799]
[1738122615662,3.19633,3128.6,3128.1,7.86378762]
[1738122617049,3.19633,3128.6,3128.1,4.66699762]
[1738122617650,0.8179,3129.1,3128.1,1.46799762]
[1738122617651,3.19664,3128.3,3128.1,1.46799762]
[1738122617861,3.19664,3128.3,3128.1,0.7822]
[1738122618379,3.19672,3128.2,3128.1,0.7822]
[1738122618782,3.19664,3128.3,3128.1,0.7822]
[1738122619085,3.1969,3128.1,3127.8,4.0269]
[1738122619562,3.19665,3128.3,3127.8,4.0269]
[1738122619768,3.19665,3128.3,3127.9,0.40269]
[1738122623380,6.39297,3128.5,3127.9,0.40269]
[1738122623582,6.39239,3128.8,3128.2,0.7975]
[1738122623752,3.19619,3128.8,3128.2,0.7975]
[1738122623952,3.19622,3128.7,3128.2,0.7975]
[1738122624286,3.19619,3128.8,3128.2,1.196926]
[1738122624453,3.19622,3128.7,3128.2,4.393606]
[1738122624960,3.19633,3128.6,3128.2,1.196926]
[1738122625163,6.39274,3128.6,3128.2,1.196926]
[1738122625346,3.19642,3128.5,3128.2,1.196926]
[1738122626475,3.19642,3128.5,3128.2,0.7975]
[1738122628163,3.19662,3128.3,3127.9,1.20019]
[1738122628363,3.19642,3128.5,3127.9,4.39919]
[1738122628563,6.39292,3128.5,3127.9,1.20019]
[1738122629266,3.19655,3128.4,3127.9,1.20019]
[1738122629482,3.19655,3128.4,3127.9,4.39919]
[1738122629788,3.19683,3128.1,3127.6,3.19733]
[1738122629992,3.19683,3128.1,3127.7,3.199]
[1738122630486,3.19703,3127.9,3127.7,3.199]
[1738122630666,3.19713,3127.8,3127.4,0.8276]
[1738122630869,3.19732,3127.7,3127.4,0.8276]
[1738122631063,3.19745,3127.5,3127.2,3.2946]
[1738122631862,7.20624,3127.9,3127.3,0.23757809]
[1738122632067,4.00913,3127.9,3127.3,0.23757809]
[1738122632463,4.00913,3127.9,3127.4,0.06070637]
[1738122632671,3.19718,3127.8,3127.4,0.06070637]
[1738122634390,3.1974,3127.6,3127.4,0.06070637]
[1738122634596,3.19744,3127.5,3127.4,0.06070637]
[1738122634999,3.19744,3127.5,3127.3,0.23757809]
[1738122635000,7.00014,3127.5,3127.3,0.23757809]
[1738122635196,3.19754,3127.4,3127.3,0.23757809]
[1738122635763,7.00014,3127.5,3127.2,2.533]
[1738122635977,3.19764,3127.3,3127.2,2.533]
[1738122639470,3.0,3127.5,3127.2,3.3185]
[1738122639696,3.19718,3127.8,3127.2,3.65035]
[1738122639995,3.19677,3128.2,3127.5,3.19735]
[1738122640163,3.19687,3128.1,3127.6,0.7855]
[1738122640566,3.0,3128.2,3127.6,0.7855]
[1738122640762,3.19716,3127.8,3127.3,3.9831]
[1738122641104,3.19754,3127.4,3127.2,2.533]
[1738122641310,3.19764,3127.3,3127.2,2.533]
[1738122641601,4.02784,3127.3,3127.2,2.533]
[1738122642106,3.19751,3127.5,3127.2,2.533]
[1738122642474,3.0,3127.5,3127.3,0.05497579]
[1738122642876,3.0,3127.5,3127.2,2.533]
[1738122643076,3.0,3127.5,3127.4,0.05479714]
[1738122643418,4.02737,3127.8,3127.2,2.533]
[1738122643710,3.19704,3127.9,3127.3,4.567771]
[1738122643871,3.19704,3127.9,3127.3,4.62256814]
[1738122644072,0.7611,3128.2,3127.5,3.19744]
[1738122644073,6.19691,3128.1,3127.5,3.19744]
[1738122644698,6.19691,3128.1,3127.6,0.05479714]
[1738122644699,3.19695,3128.0,3127.6,0.05479714]
[1738122645109,3.19695,3128.0,3127.3,4.567741]
[1738122645273,3.19695,3128.0,3127.7,0.05479714]
[1738122645473,3.19695,3128.0,3127.3,4.567741]
[1738122645697,3.19695,3128.0,3127.8,0.05479714]
[1738122645898,6.39397,3128.0,3127.3,4.567741]
[1738122646109,6.19695,3128.0,3127.9,0.0541858]
[1738122646412,9.39397,3128.0,3127.3,4.567741]
[1738122646614,9.39397,3128.0,3127.4,0.7100741]
[1738122646818,9.39397,3128.0,3127.4,0.76426677]
[1738122646997,3.19716,3127.8,3127.4,0.05419267]
[1738122647311,3.19727,3127.7,3127.4,0.05419267]
[1738122648421,3.19737,3127.6,3127.4,0.05419267]
[1738122648725,3.19716,3127.8,3127.4,0.05419267]
[1738122649791,3.19725,3127.7,3127.4,0.05419267]
[1738122651827,3.19716,3127.8,3127.4,0.05419267]
[1738122651989,3.19744,3127.5,3127.4,0.05419267]
[1738122652389,3.19762,3127.4,3127.2,2.533]
[1738122653115,3.19744,3127.5,3127.2,2.533]
[1738122653316,3.19744,3127.5,3126.9,4.0208]
[1738122654428,3.19761,3127.4,3127.0,0.23778732]
[1738122654802,3.19744,3127.5,3127.0,0.23778732]
[1738122655129,3.19744,3127.5,3127.0,0.98345505]
[1738122655707,0.7948,3127.6,3127.0,0.98345505]
[1738122655708,1.280058,3127.8,3127.3,3.19758]
[1738122656009,3.19713,3127.8,3127.2,4.02525]
[1738122656210,3.19705,3127.9,3127.2,4.02525]
[1738122656518,3.19705,3127.9,3127.2,7.22293]
[1738122656726,3.19705,3127.9,3127.3,0.71336513]
[1738122657442,3.0,3128.0,3127.3,0.71336513]
[1738122657646,3.19671,3128.3,3127.6,3.19724]
[1738122657813,3.19674,3128.2,3127.6,3.19727]
[1738122658010,3.19674,3128.2,3127.6,3.911796]
[1738122658944,0.7982,3128.5,3127.8,3.19706]
[1738122658945,3.19655,3128.4,3127.8,3.19706]
[1738122659110,3.19642,3128.5,3128.0,3.19693]
[1738122659310,3.19659,3128.4,3127.8,3.19706]
[1738122659522,3.19663,3128.3,3127.8,3.19706]
[1738122660137,3.19663,3128.3,3127.9,0.05415146]
[1738122660730,3.19693,3128.0,3127.9,0.05415146]
[1738122660932,3.19693,3128.0,3127.2,0.7882]
[1738122660933,3.19717,3127.8,3127.2,0.7882]
[1738122661357,3.98935,3128.2,3127.8,0.23796162]
[1738122661513,3.19675,3128.2,3127.8,1.02616162]
[1738122662349,0.7926,3128.5,3127.8,1.02616162]
[1738122662529,3.19639,3128.6,3127.9,3.19694]
[1738122662734,3.0,3128.5,3127.9,3.19694]
[1738122662936,3.19655,3128.4,3127.8,0.7882]
[1738122663145,3.19655,3128.4,3127.3,3.98578]
[1738122663146,3.19709,3127.9,3127.3,3.98578]
[1738122663481,3.19725,3127.7,3127.3,0.7882]
[1738122664529,3.19725,3127.7,3127.1,3.98596]
[1738122665161,0.7926,3127.8,3127.2,3.43575306]
[1738122665573,3.98975,3127.8,3127.2,3.43575306]
[1738122665864,3.98975,3127.8,3127.2,4.17792437]
[1738122666463,3.98975,3127.8,3127.3,0.23801306]
[1738122667071,0.7926,3127.8,3127.3,0.23801306]
[1738122667233,3.19709,3127.9,3127.3,3.43564306]
[1738122668062,3.19709,3127.9,3127.4,0.23801306]
[1738122668273,3.19726,3127.7,3127.4,0.23801306]
[1738122668766,0.7828,3127.8,3127.4,0.23801306]
[1738122668936,3.97996,3127.8,3127.4,0.23801306]
[1738122669153,3.97996,3127.8,3127.2,3.19767]
[1738122670865,3.97996,3127.8,3127.3,0.23819352]
[1738122671166,3.19741,3127.6,3127.3,0.23819352]
[1738122672131,3.19741,3127.6,3127.1,3.98604]
[1738122672667,3.97996,3127.8,3127.1,3.98604]
[1738122672871,3.19724,3127.7,3127.1,3.98604]
[1738122673669,3.19724,3127.7,3127.2,0.23821867]
[1738122674267,3.19724,3127.7,3127.2,0.64312102]
[1738122674431,3.19724,3127.7,3127.3,0.23821867]
[1738122675143,3.19724,3127.7,3127.4,0.0510879]
[1738122675469,3.19729,3127.7,3127.4,0.0510879]
[1738122676274,3.19729,3127.7,3127.1,3.98598]
[1738122676562,3.19729,3127.7,3127.2,0.0510879]
[1738122677470,3.19729,3127.7,3127.2,0.28935547]
[1738122678960,3.19729,3127.7,3127.3,0.23826757]
[1738122679371,3.836726,3127.7,3127.4,0.05112221]
[1738122679556,4.55834,3127.5,3127.4,0.05112221]
[1738122679949,3.19764,3127.3,3127.2,0.23826757]
[1738122680873,3.19764,3127.3,3127.2,0.28955453]
[1738122681045,3.973238,3127.3,3127.2,0.28955453]
[1738122681369,3.19791,3127.1,3126.7,0.23826757]
[1738122681768,3.19791,3127.1,3126.8,0.0513762]
[1738122682139,6.39584,3127.1,3126.7,0.23826757]
[1738122682341,6.39584,3127.1,3126.9,0.0513762]
[1738122682541,3.19791,3127.1,3126.6,0.7678]
[1738122682741,3.19791,3127.1,3127.0,0.0513762]
[1738122682941,3.19791,3127.1,3126.6,0.7678]
[1738122683141,3.19791,3127.1,3127.0,0.0513762]
[1738122683343,3.19791,3127.1,3126.6,0.7678]
[1738122683583,3.19791,3127.1,3127.0,0.0513762]
[1738122683754,3.19791,3127.1,3126.6,0.7678]
[1738122683954,3.19791,3127.1,3127.0,0.0513762]
[1738122684152,3.19791,3127.1,3126.6,0.7678]
[1738122684359,3.19791,3127.1,3127.0,0.0513762]
[1738122684678,3.19698,3128.0,3126.5,3.19845]
[1738122684679,6.9927,3127.9,3127.1,3.96709]
[1738122684855,3.19728,3127.7,3127.2,3.19773]
[1738122685056,3.9927,3127.9,3127.2,3.2491062]
[1738122685256,3.19717,3127.8,3127.2,3.2491062]
[1738122685583,3.9927,3127.9,3127.2,0.0513762]
[1738122685584,3.19724,3127.7,3127.2,0.0513762]
[1738122687696,3.19724,3127.7,3127.2,0.289353]
[1738122689176,3.19713,3127.8,3127.3,3.19761]
[1738122689414,3.19724,3127.7,3127.2,0.289353]
[1738122689717,3.19724,3127.7,3127.2,0.2379768]
[1738122689919,3.19724,3127.7,3127.3,0.05174005]
[1738122690417,3.19734,3127.6,3127.1,3.96706]
[1738122690622,3.19734,3127.6,3127.4,0.05174005]
[1738122690921,3.19734,3127.6,3127.5,0.05174005]
[1738122691417,3.19734,3127.6,3127.1,3.96706]
[1738122691418,3.19713,3127.8,3127.2,3.1977]
[1738122691618,0.8206,3128.1,3127.5,0.05174005]
[1738122691783,3.19711,3127.9,3127.4,0.8108]
[1738122691989,3.19715,3127.8,3127.6,0.05174005]
[1738122692204,3.19715,3127.8,3127.4,0.8108]
[1738122692605,3.19715,3127.8,3127.5,0.05174005]
[1738122693924,3.19733,3127.6,3127.5,0.05174005]
[1738122694290,3.19733,3127.6,3127.2,0.8108]
[1738122694507,3.19733,3127.6,3127.3,0.05174005]
[1738122695027,3.19733,3127.6,3127.3,0.23820535]
[1738122695229,3.19733,3127.6,3127.4,0.05174005]
[1738122696133,3.836778,3127.6,3127.4,0.05174005]
[1738122696291,4.01694,3127.5,3127.4,0.05174005]
[1738122696490,3.19771,3127.3,3126.8,0.8165]
[1738122696725,3.19771,3127.3,3126.9,0.05114282]
[1738122697333,3.19771,3127.3,3126.9,0.28940097]
[1738122698926,0.7799,3127.8,3127.1,0.8307]
[1738122699139,3.0,3127.7,3127.2,3.19768]
[1738122699426,3.0,3127.7,3127.2,0.05122519]
[1738122699797,3.0,3127.9,3127.2,0.05122519]
[1738122699997,3.0,3127.7,3127.2,0.05122519]
[1738122700398,3.0,3127.7,3127.3,0.23825815]
[1738122701010,6.19724,3127.7,3127.4,0.05122519]
[1738122701458,3.19719,3127.8,3127.5,0.8275]
[1738122702052,3.19719,3127.8,3127.6,0.05122519]
[1738122703745,3.19723,3127.7,3127.6,0.05122519]
[1738122703947,3.836672,3127.7,3127.6,0.05122519]
[1738122704305,3.19744,3127.5,3127.1,3.2]
[1738122704512,3.19764,3127.3,3127.2,0.05122519]
[1738122704712,3.19764,3127.3,3127.2,0.23816004]
[1738122704910,3.19764,3127.3,3127.2,0.28923422]
[1738122705815,3.19764,3127.3,3127.2,0.05107418]
[1738122706018,3.19764,3127.3,3127.0,0.8275]
[1738122706222,0.766,3127.5,3126.7,0.7665]
[1738122706435,3.19774,3127.2,3126.7,0.7665]
[1738122706758,3.19797,3127.0,3126.8,0.05124578]
[1738122707122,3.19805,3126.9,3126.5,0.7665]
[1738122707324,3.19805,3126.9,3126.8,0.23822009]
[1738122707723,3.19797,3127.0,3126.8,0.23822009]
[1738122708539,3.19797,3127.0,3126.6,0.23822009]
[1738122711799,3.19797,3127.0,3126.7,0.23822009]
[1738122713160,3.19797,3127.0,3126.2,3.19872]
[1738122713161,3.9547,3126.7,3126.2,0.7506]
[1738122713464,3.19847,3126.5,3126.2,0.7506]
[1738122713965,3.19847,3126.5,3126.3,0.23837581]
[1738122714163,0.7564,3126.7,3126.3,0.23837581]
[1738122714344,3.19789,3127.1,3126.3,0.23837581]
[1738122714345,3.19837,3126.6,3126.3,0.23837581]
[1738122715266,3.19837,3126.6,3126.4,0.23837581]
[1738122716439,3.19837,3126.6,3126.2,0.7506]
[1738122717934,3.19837,3126.6,3126.3,0.23815271]
[1738122720249,3.1981,3126.9,3126.4,3.25075322]
[1738122720645,3.1981,3126.9,3126.4,0.05219322]
[1738122720984,0.55,3127.1,3126.4,0.05219322]
[1738122721165,3.19821,3126.8,3126.4,0.05219322]
[1738122721368,3.19778,3127.2,3126.5,0.7952854]
[1738122721566,3.19778,3127.2,3126.7,3.19825]
[1738122722237,1.280216,3127.8,3126.9,0.7633]
[1738122722238,3.19737,3127.6,3126.9,0.7633]
[1738122722546,3.19737,3127.6,3127.1,3.19784]
[1738122723078,3.19737,3127.6,3127.2,0.05198037]
[1738122723241,3.95908,3127.8,3127.2,0.05198037]
[1738122723242,3.19764,3127.4,3127.2,0.05198037]
[1738122723777,3.19764,3127.4,3127.3,0.05198037]
[1738122724180,3.19764,3127.4,3126.9,0.7633]
[1738122724343,3.19764,3127.4,3127.3,0.05198037]
[1738122724547,3.19764,3127.4,3127.0,0.23799422]
[1738122724775,3.19764,3127.4,3127.3,0.05198037]
[1738122725381,3.19736,3127.6,3127.0,3.43592422]
[1738122725543,3.19736,3127.6,3127.3,0.05198037]
[1738122725747,3.19736,3127.6,3127.1,0.23799422]
[1738122725946,3.19736,3127.6,3127.4,0.05198037]
[1738122726158,3.19736,3127.6,3127.1,0.23799422]
[1738122726367,3.19736,3127.6,3127.5,0.05183621]
[1738122726568,3.19701,3128.0,3127.3,3.19754]
[1738122726794,3.0,3127.9,3127.5,0.05183621]
[1738122726967,3.19716,3127.8,3127.4,0.05176756]
[1738122727172,3.19716,3127.8,3127.2,0.23799422]
[1738122727173,3.19755,3127.4,3127.2,0.23799422]
[1738122727575,3.19728,3127.7,3127.2,0.23799422]
[1738122727749,6.39461,3127.7,3127.2,0.23799422]
[1738122727953,3.19735,3127.6,3127.2,0.23799422]
[1738122728255,3.19735,3127.6,3127.3,0.23799422]
[1738122729609,3.19735,3127.6,3127.0,3.43592422]
[1738122729754,3.197,3128.0,3127.3,3.19754]
[1738122729953,3.1974,3127.6,3127.2,0.8234]
[1738122731487,3.19729,3127.7,3127.2,0.8234]
[1738122732786,3.19735,3127.6,3127.2,0.8234]
[1738122733519,3.19735,3127.6,3127.3,0.23776745]
[1738122734887,3.0,3128.3,3127.3,0.23776745]
[1738122734888,0.7877,3129.3,3127.4,0.757]
[1738122735166,3.19663,3128.3,3127.8,3.95406]
[1738122735369,3.19654,3128.4,3127.9,0.03196695]
[1738122735627,3.19634,3128.6,3128.0,0.3986027]
[1738122735768,3.19634,3128.6,3128.1,7.20348561]
[1738122735974,3.19634,3128.6,3128.1,7.17152]
[1738122736319,3.19634,3128.6,3128.2,0.05082028]
[1738122738030,3.19643,3128.5,3128.2,0.05082028]
[1738122739126,3.19633,3128.6,3128.2,0.81292358]
[1738122739639,3.19643,3128.5,3128.2,0.81292358]
[1738122739937,3.19633,3128.6,3128.2,0.81292358]
[1738122741529,3.19653,3128.4,3128.2,0.05082028]
[1738122742548,3.19662,3128.3,3128.2,0.05082028]
[1738122742712,3.95362,3128.3,3128.2,0.05082028]
[1738122743028,3.19692,3128.1,3127.6,0.7872]
[1738122743238,3.19694,3128.0,3127.6,0.7872]
[1738122743405,3.19708,3127.9,3127.7,0.04860884]
[1738122744012,3.19713,3127.8,3127.7,0.04860884]
[1738122744213,4.02593,3127.8,3127.7,0.04860884]
[1738122744526,3.19739,3127.6,3127.3,0.7522]
[1738122745433,3.19713,3127.8,3127.3,0.7522]
[1738122747135,3.19725,3127.7,3127.3,0.7522]
[1738122747631,3.19738,3127.6,3127.3,0.7522]
[1738122748209,3.19738,3127.6,3127.0,0.8167]
[1738122748210,3.19755,3127.4,3127.0,0.8167]
[1738122748424,3.19775,3127.2,3126.7,0.8167]
[1738122748799,3.1976,3127.4,3126.7,1.471601]
[1738122749003,3.19767,3127.3,3126.8,3.19815]
[1738122749343,3.19767,3127.3,3126.7,1.471601]
[1738122749578,6.39541,3127.3,3126.7,1.471601]
[1738122749779,3.19767,3127.3,3126.7,1.471601]
[1738122750276,6.3954,3127.3,3126.8,0.28625133]
[1738122750673,0.7594,3127.5,3126.8,0.28625133]